bitfinex-derivatives/quotes_ETHF0:USTF0_20260303
["timestamp","ask_amount","ask_price","bid_price","bid_amount"]
[1772557868366,3.0638574,1964.6,1963.3,2.9153916]
[1772557869069,12.31832262,1965.4,1963.9,2.91091516]
[1772557869070,3.0638574,1965.4,1963.9,2.91091516]
[1772557869470,3.0638574,1965.4,1964.3,2.91091516]
[1772557869968,9.3219774,1965.4,1964.0,2.91091516]
[1772557870170,3.0638574,1965.1,1964.0,2.91091516]
[1772557870467,3.0638574,1965.1,1963.9,2.91091516]
[1772557870769,10.38018855,1965.9,1964.3,2.91091516]
[1772557870770,3.0638574,1965.5,1964.3,2.91091516]
[1772557870974,3.0638574,1965.5,1964.5,2.91091516]
[1772557872476,3.0638574,1965.5,1963.3,6.26920644]
[1772557872477,3.0638574,1965.1,1964.0,2.91091516]
[1772557872669,3.0638574,1964.9,1963.5,2.91091516]
[1772557872870,3.0638574,1965.2,1964.1,2.91091516]
[1772557873576,3.0638574,1965.2,1964.3,2.91091516]
[1772557873774,3.0638574,1965.8,1964.7,2.91091516]
[1772557874073,0.00449073,1965.9,1964.9,2.91091516]
[1772557874272,3.06834813,1965.9,1964.9,2.91091516]
[1772557874467,3.0638574,1966.5,1965.5,2.91091516]
[1772557875264,3.0638574,1967.0,1965.7,2.91091516]
[1772557875463,3.07031926,1967.0,1965.7,2.91091516]
[1772557876170,0.00646186,1967.0,1965.9,2.91091516]
[1772557877172,0.00646186,1967.0,1966.2,0.25428]
[1772557877379,3.0638574,1967.8,1966.5,2.91091516]
[1772557878271,2.8369983,1967.6,1966.5,2.91091516]
[1772557878572,2.8369983,1967.4,1966.2,2.87506181]
[1772557878879,2.8369983,1967.2,1966.2,0.00561134]
[1772557879378,2.8369983,1967.2,1966.2,3.04373502]
[1772557880074,2.81874452,1967.5,1966.2,3.04373502]
[1772557880873,0.00370687,1967.6,1966.6,3.03812368]
[1772557881070,2.81874452,1968.4,1966.8,3.03812368]
[1772557881277,2.81874452,1968.4,1967.2,3.03812368]
[1772557881973,2.82412352,1968.4,1967.2,3.03812368]
[1772557882972,2.81874452,1968.0,1966.9,3.03812368]
[1772557883173,2.81874452,1968.0,1966.3,3.03812368]
[1772557883377,2.81874452,1967.8,1966.3,3.03812368]
[1772557883776,2.81874452,1967.7,1966.3,3.03812368]
[1772557884473,2.81874452,1967.9,1966.7,3.03812368]
[1772557884879,2.81874452,1968.2,1966.9,3.03812368]
[1772557885079,2.81874452,1968.0,1966.3,3.03812368]
[1772557885478,2.81874452,1967.8,1966.3,3.03812368]
[1772557886177,2.81874452,1967.6,1966.3,3.03812368]
[1772557886582,2.81874452,1967.4,1966.3,3.03812368]
[1772557886785,2.81874452,1967.2,1966.2,0.00561134]
[1772557886979,2.81874452,1966.9,1965.4,3.03812368]
[1772557887379,3.07293452,1966.9,1965.4,3.03812368]
[1772557887581,2.81874452,1966.8,1965.4,3.03812368]
[1772557887979,2.81874452,1966.4,1965.4,0.00491097]
[1772557888177,2.81874452,1966.4,1965.4,3.04303465]
[1772557888386,2.81874452,1966.4,1965.4,0.00491097]
[1772557888582,2.81874452,1966.4,1965.4,3.04303465]
[1772557888785,2.81874452,1966.4,1965.4,0.00491097]
[1772557889182,2.81874452,1966.4,1965.4,3.04303465]
[1772557889991,2.81874452,1966.4,1965.4,0.00491097]
[1772557892293,2.81874452,1966.4,1965.4,3.04303465]
[1772557892685,2.81874452,1966.2,1965.4,0.00491097]
[1772557893786,2.81874452,1966.0,1965.4,1e-08]
[1772557893990,2.81874452,1966.0,1964.7,3.03812368]
[1772557894196,2.81874452,1966.0,1964.1,3.03812368]
[1772557894197,2.81874452,1965.6,1964.1,3.03812368]
[1772557894396,2.81874452,1965.4,1963.8,3.03812368]
[1772557894596,2.81874452,1965.4,1963.9,3.03812368]
[1772557894998,2.82292927,1965.4,1963.9,3.04270271]
[1772557895198,2.81874452,1965.2,1963.9,3.04270271]
[1772557895797,2.81874452,1964.8,1963.9,0.00457903]
[1772557897098,2.81874452,1964.8,1963.4,3.03812368]
[1772557897397,2.81874452,1964.8,1962.9,3.03812368]
[1772557897700,2.81874452,1964.8,1963.1,3.03812368]
[1772557898292,2.81874452,1964.8,1963.7,3.03812368]
[1772557898497,2.81874452,1965.3,1964.2,3.29266368]
[1772557898801,2.81874452,1965.3,1963.8,3.03812368]
[1772557899392,3.07315452,1965.3,1963.8,3.03812368]
[1772557899999,2.81874452,1965.0,1963.8,3.03812368]
[1772557902199,0.00418475,1965.4,1964.0,3.03812368]
[1772557902200,2.81874452,1965.3,1964.0,3.03812368]
[1772557902404,2.81874452,1965.1,1963.4,3.03812368]
[1772557902602,2.81874452,1964.4,1963.4,3.03812368]
[1772557902806,2.81874452,1964.2,1963.1,3.0438436]
[1772557903104,2.81874452,1964.2,1963.1,0.00571992]
[1772557903602,12.90561,1964.7,1963.4,3.03812368]
[1772557903603,2.81874452,1964.7,1963.4,3.03812368]
[1772557903802,2.81874452,1964.7,1963.1,0.00571992]
[1772557903803,2.81874452,1964.3,1963.1,0.00571992]
[1772557904009,9.08033452,1964.3,1963.1,0.00571992]
[1772557904201,9.08033452,1964.3,1962.5,3.03812368]
[1772557904202,2.81874452,1963.7,1962.5,3.03812368]
[1772557904402,2.81874452,1963.6,1962.5,2.53812368]
[1772557904606,2.81874452,1963.6,1962.2,3.29291368]
[1772557904908,2.81874452,1963.4,1961.8,3.03812368]
[1772557905202,2.81874452,1963.0,1961.8,3.04427477]
[1772557905400,2.81874452,1962.8,1961.8,0.00615109]
[1772557905600,2.81874452,1962.7,1961.8,0.00615109]
[1772557905908,2.81874452,1962.7,1961.8,3.04427477]
[1772557906499,2.81874452,1963.0,1961.9,3.29296368]
[1772557906809,2.81874452,1963.3,1962.2,3.03812368]
[1772557907102,0.00490472,1963.4,1962.4,3.03812368]
[1772557907306,3.729947,1964.4,1962.6,3.03812368]
[1772557907307,2.81874452,1963.9,1962.6,3.03812368]
[1772557907509,2.81874452,1964.3,1962.8,3.03812368]
[1772557907899,10.376947,1964.4,1962.2,2.8415573]
[1772557907900,2.78387202,1963.9,1962.2,2.8415573]
[1772557908103,2.78387202,1963.7,1962.2,2.8415573]
[1772557909007,2.78387202,1963.5,1962.2,2.8415573]
[1772557909208,2.78387202,1963.5,1961.5,0.25489]
[1772557909209,3.729947,1963.2,1961.9,2.8415573]
[1772557909413,2.78387202,1963.1,1961.6,2.8415573]
[1772557910210,2.78387202,1963.1,1961.8,2.84770839]
[1772557910707,2.78387202,1963.1,1961.8,0.00615109]
[1772557911410,2.78387202,1962.9,1961.8,0.00615109]
[1772557912006,2.78387202,1962.7,1961.0,2.8415573]
[1772557912201,2.78387202,1962.5,1961.0,2.8415573]
[1772557912404,2.78387202,1962.8,1961.5,2.8415573]
[1772557912605,2.78387202,1962.8,1961.6,2.8415573]
[1772557912904,2.78975154,1962.8,1961.6,2.8415573]
[1772557913104,0.00587952,1962.8,1961.8,2.8415573]
[1772557913506,0.00587952,1962.8,1961.7,0.25487]
[1772557913507,2.78387202,1963.4,1962.0,2.8415573]
[1772557913906,9.43187202,1963.7,1962.4,2.8415573]
[1772557914207,2.78387202,1963.6,1962.4,2.8415573]
[1772557914514,0.00514814,1963.6,1962.6,2.8415573]
[1772557914808,2.78902016,1963.6,1962.6,2.8415573]
[1772557915006,0.00514814,1963.6,1962.9,2.8415573]
[1772557915408,2.78902016,1963.6,1962.3,2.8415573]
[1772557916111,2.78902016,1963.6,1962.5,2.8415573]
[1772557916810,0.00514814,1963.6,1962.6,3.0963073]
[1772557917109,2.78387202,1963.9,1962.6,3.0963073]
[1772557917110,2.78387202,1963.9,1962.9,2.8415573]
[1772557917413,2.78387202,1963.9,1962.5,2.8415573]
[1772557918216,2.78938359,1963.9,1962.5,2.8415573]
[1772557918705,2.78938359,1963.9,1962.6,3.0963073]
[1772557918911,2.78938359,1963.9,1962.9,2.8415573]
[1772557919912,6.26002,1964.8,1962.8,0.25473]
[1772557919913,2.78387202,1965.1,1963.8,3.0961573]
[1772557920213,2.78387202,1965.1,1963.4,6.26443]
[1772557920214,2.78387202,1964.7,1963.2,2.8415573]
[1772557920507,9.989937,1964.8,1963.1,2.8415573]
[1772557920508,2.78387202,1964.5,1963.1,2.8415573]
[1772557920719,2.78387202,1964.5,1963.4,3.0962073]
[1772557920908,2.78387202,1965.5,1963.9,2.8415573]
[1772557921107,2.78387202,1965.2,1963.7,0.25461]
[1772557921314,2.78387202,1965.2,1963.8,2.8415573]
[1772557921913,2.78821352,1965.2,1963.8,2.8415573]
[1772557922214,3.03830202,1965.1,1963.5,2.8415573]
[1772557922814,3.03830202,1965.1,1963.4,0.00428055]
[1772557922815,2.78387202,1964.6,1963.4,0.00428055]
[1772557923125,2.78387202,1964.4,1963.4,0.00428055]
[1772557923511,2.78387202,1965.1,1963.7,2.8415573]
[1772557923709,2.78387202,1965.1,1963.4,2.84583785]
[1772557923910,2.78387202,1965.1,1963.6,2.8415573]
[1772557924213,3.7342885,1965.2,1963.4,0.00428055]
[1772557924214,2.78387202,1964.9,1963.4,0.00428055]
[1772557924512,2.78387202,1964.3,1963.4,0.00428055]
[1772557924713,2.78387202,1964.2,1963.4,0.00428055]
[1772557925212,2.78387202,1964.2,1962.7,2.8415573]
[1772557925408,2.78387202,1963.9,1962.7,2.8415573]
[1772557926013,2.78387202,1963.9,1962.4,2.8415573]
[1772557926309,2.78387202,1963.9,1962.5,0.25476]
[1772557926515,2.78387202,1963.9,1962.6,2.8415573]
[1772557926717,2.78387202,1963.9,1962.4,0.00537866]
[1772557927113,2.78387202,1963.9,1962.4,2.84693596]
[1772557927615,2.78387202,1963.9,1962.4,3.10170596]
[1772557927917,2.78387202,1963.9,1962.9,2.8415573]
[1772557929109,6.646,1964.3,1962.4,6.27301866]
[1772557929110,2.78387202,1964.2,1963.1,2.8415573]
[1772557930112,2.78387202,1964.0,1962.5,3.0963173]
[1772557930417,2.78387202,1963.8,1962.5,3.0963173]
[1772557930612,2.78387202,1963.6,1962.5,2.8415573]
[1772557931110,2.78387202,1963.6,1962.4,0.00537866]
[1772557931310,2.78387202,1963.4,1962.4,0.00537866]
[1772557931512,2.78387202,1963.2,1962.4,0.00537866]
[1772557931818,2.78387202,1963.2,1961.9,2.8415573]
[1772557932308,2.78387202,1963.2,1962.2,2.8415573]
[1772557932512,2.78387202,1963.5,1962.4,2.8415573]
[1772557932709,2.78387202,1963.5,1962.4,2.84794283]
[1772557933015,6.65346919,1963.8,1962.6,2.8415573]
[1772557933216,6.65346919,1963.8,1962.4,0.00638553]
[1772557933217,2.78387202,1963.7,1962.8,2.8415573]
[1772557933417,2.78387202,1962.5,1961.1,2.8415573]
[1772557934615,2.78387202,1962.1,1961.1,0.00500227]
[1772557934816,2.78863821,1962.1,1960.5,2.8415573]
[1772557935720,2.78387202,1961.9,1960.5,0.00508108]
[1772557935920,2.78387202,1961.7,1960.5,0.00508108]
[1772557936117,2.78387202,1961.5,1960.5,0.00508108]
[1772557936610,2.78387202,1961.5,1959.7,3.0966773]
[1772557936813,2.78387202,1961.3,1959.7,2.8415573]
[1772557937715,2.78387202,1961.3,1959.7,2.8458306]
[1772557938618,2.92548383,1961.1,1959.7,0.0042733]
[1772557939415,2.92548383,1961.1,1959.7,2.9685434]
[1772557940718,2.92548383,1961.1,1959.7,0.0042733]
[1772557940925,2.92548383,1961.1,1959.7,3.02534265]
[1772557941320,2.92548383,1961.1,1959.8,3.27618935]
[1772557941519,2.92548383,1961.1,1960.0,0.25509]
[1772557941821,0.00476619,1962.1,1960.8,3.27605935]
[1772557942013,2.92418157,1962.1,1960.8,3.27605935]
[1772557944516,0.00476619,1962.1,1961.1,3.02106935]
[1772557944718,2.91941538,1962.4,1961.3,3.02106935]
[1772557945117,2.91941538,1963.0,1961.5,3.02106935]
[1772557945923,2.92359538,1963.0,1961.5,3.02106935]
[1772557947032,2.92359538,1963.0,1961.6,3.27594935]
[1772557947324,2.92359538,1963.0,1961.6,3.02106935]
[1772557948625,2.92359538,1963.0,1962.0,3.02106935]
[1772557949118,2.92359538,1963.0,1962.2,3.02106935]
[1772557949119,0.00418,1963.0,1962.2,3.02106935]
[1772557949324,2.91941538,1963.3,1962.4,3.02106935]
[1772557949528,2.91941538,1963.7,1962.6,3.02106935]
[1772557950221,2.92473711,1963.7,1962.6,3.02545026]
[1772557950933,2.91941538,1964.1,1963.2,3.02106935]
[1772557951926,2.91941538,1964.5,1963.3,3.27572935]
[1772557952127,1.35237191,1965.1,1963.3,3.27572935]
[1772557952128,2.91941538,1965.1,1964.0,3.02106935]
[1772557952921,2.91941538,1965.1,1964.1,3.27562935]
[1772557953120,2.92585122,1965.1,1964.1,3.28120578]
[1772557953322,0.00643584,1965.1,1964.1,3.28120578]
[1772557953930,0.00643584,1965.1,1964.1,9.54340578]
[1772557954125,2.91941538,1965.7,1964.6,3.02106935]
[1772557955226,2.91941538,1965.7,1964.3,6.647]
[1772557955227,2.92549679,1965.7,1964.3,3.02106935]
[1772557956029,2.92549679,1965.7,1963.7,3.02106935]
[1772557956030,2.91941538,1964.8,1963.7,3.02106935]
[1772557956333,2.91941538,1964.8,1963.3,3.02106935]
[1772557956531,2.91941538,1964.8,1963.4,0.25465]
[1772557956733,2.91941538,1964.8,1963.5,3.02106935]
[1772557957031,2.91941538,1964.8,1963.5,3.02561592]
[1772557957422,2.91941538,1964.8,1963.5,0.00454657]
[1772557958930,2.91941538,1964.8,1963.5,3.02561592]
[1772557960737,2.91941538,1965.3,1964.1,3.02106935]
[1772557960933,2.91941538,1965.3,1963.8,3.02106935]
[1772557961731,2.91941538,1965.1,1963.8,3.02106935]
[1772557961929,2.91941538,1965.1,1964.0,3.02106935]
[1772557962234,2.91941538,1965.4,1964.2,3.02106935]
[1772557962433,2.91941538,1965.4,1963.6,3.27568935]
[1772557962626,2.91941538,1965.2,1963.6,3.27568935]
[1772557964335,2.91941538,1965.2,1963.9,3.02106935]
[1772557964536,2.91941538,1965.2,1964.1,3.02106935]
[1772557964830,2.91941538,1965.2,1964.0,0.25457]
[1772557965039,2.91941538,1965.2,1963.8,3.02106935]
[1772557965336,2.91941538,1965.3,1964.0,3.02106935]
[1772557965726,2.91941538,1965.3,1963.8,6.26311]
[1772557965727,2.91941538,1965.3,1964.2,3.02106935]
[1772557966130,2.91941538,1965.3,1964.3,3.27559935]
[1772557966533,2.91941538,1965.6,1964.3,3.27559935]
[1772557966737,0.00608141,1965.7,1964.8,3.02106935]
[1772557967037,2.92549679,1965.7,1964.8,3.02106935]
[1772557967534,0.00608141,1965.7,1964.8,3.02106935]
[1772557967934,0.00608141,1965.7,1965.0,2.83784801]
[1772557968138,2.91941538,1966.0,1965.2,2.83784801]
[1772557968432,2.77595377,1966.3,1965.2,2.83784801]
[1772557968633,2.77595377,1966.6,1965.4,2.83784801]
[1772557968838,2.77595377,1966.6,1965.8,2.83784801]
[1772557969136,0.25409,1967.7,1966.1,3.09214801]
[1772557969137,2.77595377,1967.2,1966.1,3.09214801]
[1772557969440,2.77595377,1967.2,1965.8,2.83784801]
[1772557969836,2.77595377,1967.2,1965.6,0.25436]
[1772557969837,2.77595377,1967.4,1965.9,3.09216801]
[1772557970037,2.77595377,1967.7,1966.2,2.83784801]
[1772557970337,0.00622879,1967.4,1966.2,2.83784801]
[1772557970533,2.78218256,1967.4,1966.2,2.83784801]
[1772557970931,2.77595377,1967.2,1965.9,2.83784801]
[1772557971139,2.77595377,1967.2,1965.6,2.83784801]
[1772557971439,2.77595377,1967.0,1965.6,2.83784801]
[1772557973644,2.77595377,1966.8,1965.1,2.83784801]
[1772557973842,2.77595377,1966.6,1965.1,2.83784801]
[1772557974142,2.77595377,1966.4,1965.1,2.83784801]
[1772557974344,2.77595377,1966.2,1965.1,2.83784801]
[1772557976241,2.77595377,1966.2,1965.0,0.00484257]
[1772557977038,2.77595377,1966.0,1965.0,0.00484257]
[1772557977241,2.77991812,1966.0,1965.0,0.00484257]
[1772557977947,2.77595377,1965.8,1965.0,0.00484257]
[1772557978537,2.77595377,1965.6,1964.4,2.83784801]
[1772557979647,2.77595377,1965.6,1964.4,2.84419477]
[1772557979848,2.77595377,1965.6,1964.4,0.00634676]
[1772557980546,2.77595377,1965.9,1964.6,2.83784801]
[1772557980748,2.77595377,1965.9,1964.8,2.83784801]
[1772557981148,2.77595377,1965.9,1964.5,2.83784801]
[1772557981351,0.00396435,1966.0,1964.5,2.83784801]
[1772557981352,2.77595377,1965.5,1964.5,2.83784801]
[1772557982245,2.77595377,1965.9,1964.8,2.83784801]
[1772557982947,2.77595377,1965.3,1964.4,0.00634676]
[1772557983146,2.77595377,1965.3,1964.4,2.84419477]
[1772557983856,2.77595377,1965.8,1964.4,3.09870477]
[1772557984350,2.77595377,1965.8,1964.7,2.83784801]
[1772557984547,0.00396435,1966.0,1965.1,2.83784801]
[1772557984746,0.00396435,1966.0,1965.3,2.83784801]
[1772557985346,2.77595377,1966.3,1965.3,2.83784801]
[1772557986248,0.00543233,1966.3,1965.5,2.83784801]
[1772557987248,2.77595377,1967.0,1965.7,2.83784801]
[1772557987953,2.77595377,1967.0,1965.9,2.83784801]
[1772557988250,2.78111356,1967.0,1965.9,2.84299471]
[1772557989157,0.00515979,1967.0,1966.1,2.83784801]
[1772557990155,2.77595377,1967.4,1966.3,2.83784801]
[1772557990465,2.77595377,1967.9,1966.8,0.25421]
[1772557990758,2.77595377,1967.9,1966.9,2.83784801]
[1772557991153,2.78096204,1967.9,1966.9,2.83784801]
[1772557992355,2.78096204,1967.9,1966.6,2.83784801]
[1772557992562,2.78096204,1967.9,1966.8,2.83784801]
[1772557993254,2.77595377,1967.7,1966.3,2.83784801]
[1772557993455,2.77595377,1967.5,1966.3,2.83784801]
[1772557993860,2.77595377,1967.3,1966.0,2.83784801]
[1772557994157,2.77595377,1966.9,1965.9,0.0051467]
[1772557994360,2.77595377,1966.7,1965.9,0.0051467]
[1772557995461,0.25421,1966.8,1965.3,2.83784801]
[1772557995462,2.77595377,1966.5,1965.3,2.83784801]
[1772557995863,2.77595377,1966.8,1965.7,2.83784801]
[1772557996462,2.78175564,1966.8,1965.7,2.8428997]
[1772557996765,0.00580187,1966.8,1965.9,2.83784801]
[1772557997152,2.77595377,1967.1,1966.1,2.83784801]
[1772557997559,2.77595377,1967.5,1966.1,2.83784801]
[1772557998058,2.7824578,1967.5,1966.1,2.83784801]
[1772557998262,2.94843116,1967.2,1965.8,2.78322659]
[1772557998461,3.20259116,1967.2,1965.8,2.78322659]
[1772557999059,3.20259116,1967.2,1966.0,2.78322659]
[1772557999458,3.20259116,1967.2,1965.8,2.78322659]
[1772558001559,3.20259116,1967.2,1965.7,0.00505169]
[1772558001764,2.7045157,1966.9,1965.7,0.00505169]
[1772558001958,6.25235,1967.2,1965.7,0.00505169]
[1772558001959,2.7045157,1966.7,1965.7,0.00505169]
[1772558002769,2.7045157,1966.7,1965.7,2.95287997]
[1772558003369,2.7045157,1966.5,1965.7,0.00505169]
[1772558003770,2.7045157,1966.5,1965.7,2.95287997]
[1772558004166,2.7045157,1966.8,1966.0,2.94782828]
[1772558004368,2.7045157,1967.3,1966.0,2.94782828]
[1772558004967,2.7045157,1967.3,1966.2,2.94782828]
[1772558006167,2.7045157,1966.9,1965.8,2.94782828]
[1772558006470,2.7045157,1966.7,1965.7,0.00505169]
[1772558007062,2.7045157,1966.7,1965.7,2.95287997]
[1772558008375,2.7045157,1966.7,1965.7,0.00505169]
[1772558008766,2.7045157,1967.2,1966.3,2.94782828]
[1772558008967,2.7045157,1967.2,1965.7,3.20721997]
[1772558009373,2.7045157,1967.0,1965.7,3.20721997]
[1772558009574,2.7045157,1966.8,1965.7,3.20721997]
[1772558012273,2.7045157,1967.3,1965.7,3.20721997]
[1772558013579,2.7045157,1966.7,1965.7,2.95287997]
[1772558017178,2.7045157,1966.5,1965.7,0.00505169]
[1772558018178,2.7045157,1966.5,1965.7,2.95287997]
[1772558019585,2.7045157,1966.3,1965.2,3.20223828]
[1772558019782,2.9587757,1966.5,1965.2,3.20223828]
[1772558019982,2.7045157,1966.5,1965.2,3.20223828]
[1772558020189,2.7045157,1966.5,1965.1,12.91001]
[1772558020190,2.7045157,1966.5,1965.6,2.94782828]
[1772558020586,2.7045157,1966.5,1965.6,2.95250069]
[1772558023090,3.04732472,1967.0,1965.7,0.25435]
[1772558023091,2.7045157,1966.9,1965.7,0.25435]
[1772558023284,2.7045157,1966.7,1965.7,0.25435]
[1772558023684,2.7045157,1966.5,1965.6,0.00467241]
[1772558024383,2.79313472,1966.7,1965.6,0.00467241]
[1772558024384,2.7045157,1966.3,1965.6,0.00467241]
[1772558024988,2.7045157,1966.3,1965.6,2.95250069]
[1772558025185,2.7045157,1966.6,1965.6,2.95250069]
[1772558027988,2.7045157,1966.6,1965.8,2.66095269]
[1772558028388,2.84427816,1967.0,1965.7,2.91530269]
[1772558029497,2.84427816,1966.8,1965.6,2.6656251]
[1772558030392,2.84427816,1966.7,1965.6,2.9199751]
[1772558031389,2.84427816,1967.1,1966.0,2.66095269]
[1772558031589,2.84427816,1966.9,1966.0,2.66095269]
[1772558032189,2.84427816,1966.9,1965.9,0.25431]
[1772558032489,0.25417,1967.2,1965.6,0.00467241]
[1772558032490,2.84427816,1966.7,1965.6,0.00467241]
[1772558032696,2.84427816,1966.7,1965.6,2.6656251]
[1772558032892,3.09848816,1966.8,1965.8,2.66095269]
[1772558033398,2.84427816,1966.8,1965.6,2.6656251]
[1772558033789,2.84427816,1966.8,1965.7,0.25435]
[1772558033988,2.84427816,1966.8,1965.8,2.66095269]
[1772558034393,2.84427816,1967.2,1966.0,2.66095269]
[1772558035301,2.84427816,1967.0,1966.0,2.66095269]
[1772558035594,2.84427816,1967.0,1965.9,0.25432]
[1772558035994,2.84427816,1967.0,1965.9,2.91527269]
[1772558038097,2.84427816,1966.8,1965.7,2.66095269]
[1772558040104,2.84427816,1966.8,1965.9,2.66095269]
[1772558041003,2.84427816,1967.2,1966.1,2.66095269]
[1772558042894,2.84427816,1967.2,1966.4,0.25426]
[1772558043098,0.00650403,1967.5,1966.7,2.66095269]
[1772558043595,0.00650403,1967.5,1966.6,0.25423]
[1772558043596,2.85078219,1967.5,1966.6,2.66095269]
[1772558044598,2.85078219,1967.5,1966.4,2.66095269]
[1772558045199,2.85078219,1967.5,1966.4,2.91521269]
[1772558046007,0.00650403,1967.5,1966.4,2.91521269]
[1772558046304,3.09831816,1968.1,1966.9,2.66095269]
[1772558046698,3.09831816,1968.1,1966.6,2.66095269]
[1772558046902,3.09831816,1968.1,1967.0,2.66095269]
[1772558047203,2.8494964,1968.1,1967.0,2.66660168]
[1772558047804,2.8494964,1968.1,1967.4,2.66095269]
[1772558048108,0.00521824,1968.1,1967.4,2.66095269]
[1772558048609,2.84427816,1968.5,1967.6,2.66095269]
[1772558049206,2.84427816,1969.0,1967.8,2.66095269]
[1772558049505,2.84812118,1969.0,1967.8,2.66095269]
[1772558049710,2.84427816,1968.7,1967.8,2.66095269]
[1772558049911,2.84427816,1968.7,1967.2,0.25415]
[1772558049912,2.84427816,1968.7,1967.3,2.66095269]
[1772558051206,2.84427816,1968.7,1967.5,2.66095269]
[1772558051712,2.84427816,1968.7,1967.7,2.66095269]
[1772558053212,2.84427816,1968.9,1967.9,2.66095269]
[1772558053411,0.00384302,1969.0,1968.1,2.66095269]
[1772558053706,2.84812118,1969.0,1968.1,2.66095269]
[1772558054305,0.00384302,1969.0,1968.1,2.66095269]
[1772558054905,2.84427816,1969.3,1968.3,2.66095269]
[1772558055716,2.84427816,1969.3,1968.0,2.66095269]
[1772558056009,2.84886823,1969.3,1968.0,2.66095269]
[1772558056904,2.84427816,1969.1,1967.7,2.66095269]
[1772558057110,2.84427816,1968.5,1967.2,2.66095269]
[1772558057312,2.84427816,1968.3,1967.2,2.66095269]
[1772558057510,2.84427816,1968.3,1967.0,2.92077168]
[1772558058115,2.71520571,1968.1,1967.0,2.66660168]
[1772558059111,2.71520571,1968.1,1967.0,2.92078168]
[1772558059420,2.71520571,1968.1,1967.0,2.66660168]
[1772558061508,2.71520571,1968.1,1967.1,0.25417]
[1772558061710,2.67467903,1968.7,1967.4,2.83038107]
[1772558062917,2.67467903,1968.7,1967.6,2.83038107]
[1772558063820,2.67467903,1968.5,1967.1,2.83038107]
[1772558064419,0.254,1968.4,1967.1,2.83038107]
[1772558064621,2.67467903,1968.3,1967.0,0.00564899]
[1772558064919,2.67467903,1967.9,1967.0,0.00564899]
[1772558065118,2.68105339,1967.9,1967.0,0.00564899]
[1772558065513,2.68105339,1967.9,1967.0,2.83603006]
[1772558066123,2.68105339,1967.9,1967.0,0.00564899]
[1772558066526,2.67467903,1967.7,1966.5,9.73562107]
[1772558066822,2.67467903,1967.7,1966.8,2.83038107]
[1772558067624,2.67467903,1967.7,1966.8,2.83687927]
[1772558069122,0.00637436,1967.9,1967.0,2.83038107]
[1772558069422,2.67467903,1968.3,1967.6,2.83038107]
[1772558069723,2.67467903,1968.7,1967.6,2.83038107]
[1772558070025,2.67467903,1968.7,1967.1,6.25264]
[1772558070026,2.67467903,1968.7,1967.8,2.83038107]
[1772558070323,2.67869387,1968.7,1967.8,2.83038107]
[1772558070727,2.67869387,1968.7,1967.4,6.2517]
[1772558070728,2.67869387,1968.7,1967.5,2.83038107]
[1772558071026,2.67869387,1968.7,1967.7,2.83038107]
[1772558071221,0.00401484,1968.7,1967.8,3.08446107]
[1772558071427,0.00401484,1968.7,1968.1,2.83038107]
[1772558071925,2.67467903,1969.0,1968.1,2.83038107]
[1772558072629,2.67467903,1969.0,1967.8,6.25042]
[1772558072630,2.67467903,1969.5,1968.3,2.83038107]
[1772558072823,2.67945498,1969.5,1968.3,2.83467583]
[1772558073126,2.93332498,1969.5,1968.3,2.83467583]
[1772558073328,2.93332498,1969.5,1968.3,0.00429476]
[1772558074529,2.93332498,1969.5,1968.3,2.83467583]
[1772558075725,2.93332498,1969.5,1968.3,0.00429476]
[1772558075926,2.67467903,1969.2,1968.3,0.00429476]
[1772558076525,2.67467903,1969.2,1968.3,2.83467583]
[1772558077430,2.67467903,1969.2,1968.3,0.00429476]
[1772558081237,2.67945498,1969.5,1968.4,2.83038107]
[1772558081931,0.00477595,1969.5,1968.4,6.2485]
[1772558082130,2.67467903,1970.0,1969.1,2.83038107]
[1772558082533,2.67467903,1970.4,1969.4,0.25387]
[1772558082734,2.67467903,1970.4,1969.5,2.83038107]
[1772558083132,0.00384835,1970.4,1969.7,2.83038107]
[1772558083332,0.00384835,1970.4,1969.7,2.8366888]
[1772558083737,2.67852738,1970.4,1969.7,2.8366888]
[1772558084336,2.67852738,1970.4,1969.7,0.00630773]
[1772558084534,2.67852738,1970.4,1969.2,2.83038107]
[1772558084839,2.67467903,1970.0,1969.1,2.83038107]
[1772558085034,2.67467903,1970.3,1969.1,2.83038107]
[1772558085641,2.67467903,1970.3,1969.1,2.83513688]
[1772558085843,2.67467903,1970.3,1969.3,2.83038107]
[1772558086541,2.67467903,1970.3,1969.2,2.83038107]
[1772558086841,2.67467903,1970.1,1969.1,0.00475581]
[1772558087937,2.67467903,1970.1,1969.4,2.83544962]
[1772558088138,2.64091856,1970.3,1969.4,2.83544962]
[1772558090442,0.00384835,1970.4,1969.5,3.08930962]
[1772558090841,2.64476691,1970.4,1969.5,3.08930962]
[1772558092046,0.00384835,1970.4,1970.0,2.83544962]
[1772558092251,2.64091856,1971.0,1970.1,3.08922962]
[1772558093146,2.64667969,1971.0,1970.1,3.08922962]
[1772558093541,0.25357,1971.8,1970.4,2.83544962]
[1772558093542,2.64091856,1971.3,1970.4,2.83544962]
[1772558094645,2.95875441,1972.1,1971.0,2.83544962]
[1772558094850,2.64091856,1971.9,1970.6,2.83544962]
[1772558095248,2.64091856,1971.9,1970.7,0.2537]
[1772558095447,2.64091856,1971.9,1970.8,2.83544962]
[1772558095646,2.64745525,1971.9,1970.8,2.8394402]
[1772558095842,2.64745525,1971.9,1970.8,0.00399058]
[1772558096247,2.64745525,1971.9,1970.8,2.8394402]
[1772558096544,2.64745525,1971.9,1970.8,0.00399058]
[1772558096949,2.64091856,1971.7,1970.8,0.00399058]
[1772558099556,2.64091856,1971.5,1970.2,3.08921962]
[1772558099757,2.64091856,1971.3,1970.0,2.83544962]
[1772558100555,2.64091856,1971.5,1970.7,2.83544962]
[1772558100857,2.64091856,1971.5,1970.1,3.08921962]
[1772558101256,2.64091856,1971.5,1970.4,2.83544962]
[1772558101458,2.64091856,1971.5,1970.6,2.83544962]
[1772558101660,2.64091856,1971.5,1970.5,0.25373]
[1772558101857,2.64091856,1971.8,1970.7,3.08914962]
[1772558102451,2.64091856,1971.8,1970.2,6.24265]
[1772558102452,2.89448856,1971.8,1970.5,2.83544962]
[1772558102661,2.64091856,1971.5,1970.0,0.00522667]
[1772558103057,2.64091856,1971.1,1970.0,0.00522667]
[1772558103349,2.64091856,1970.7,1970.0,0.00522667]
[1772558103567,2.64091856,1970.3,1969.0,2.83544962]
[1772558103859,2.64091856,1970.1,1969.0,2.83544962]
[1772558104057,2.64091856,1970.1,1968.8,2.83544962]
[1772558104256,2.64091856,1970.1,1969.0,2.83544962]
[1772558104460,2.64619563,1970.1,1969.2,2.83544962]
[1772558104957,0.00527707,1970.1,1969.4,2.83544962]
[1772558105957,2.64619563,1970.1,1969.4,2.83544962]
[1772558106165,2.64619563,1970.1,1969.3,3.08932962]
[1772558106367,0.00527707,1970.1,1969.3,3.08932962]
[1772558106863,2.64619563,1970.1,1969.3,3.08932962]
[1772558107060,0.00527707,1970.1,1969.3,3.08932962]
[1772558107259,2.64091856,1971.1,1969.8,2.83544962]
[1772558107463,2.64091856,1970.9,1969.3,6.651]
[1772558107669,2.64091856,1970.7,1969.4,2.83544962]